Cogmind - Beta 13 @@@ ROGUE MODE // 2024.06.30 @ 20:15:34 Player: anastasia Result: Destroyed by S-10 Pest with Light Assault Rifle Performance ------------- Evolutions (1) 500 Regions Visited (3) 600 Robots Destroyed (51) 255 Value Destroyed (1322) 1322 Prototype IDs (3) 60 Alien Tech Used (0) 0 Bonus (0) 0 TOTAL SCORE: 2737 Bonus ------- None Cogmind --------- Core Integrity 0/400 Matter 280/300 Energy 271/275 System Corruption 2% Temperature Cool (2) Movement Treading (160) Location -9/Mines Parts ------- > --- POWER (1) -------- Deuterium Engine > --- PROPULSION (3) --- Light Treads Improved Treads > --- UTILITY (3) ------ Signal Interpreter Targeting Computer Medium Armor Plating > --- WEAPON (2) ------- Small Laser Katana > --- INVENTORY (5) ---- Deuterium Engine Deuterium Engine Large Storage Unit Structural Scanner ECM Suite Peak State ------------ > --- POWER ------------ Improved Ion Engine > --- PROPULSION ------- Light Treads Light Treads Improved Treads > --- UTILITY ---------- Large Storage Unit Signal Interpreter Targeting Computer > --- WEAPON ----------- Improved Assault Rifle Improved Assault Rifle > --- INVENTORY -------- Ion Engine Light Ion Engine Light Treads Light Treads Aluminum Leg Improved Aluminum Leg Structural Scanner Terrain Scanner ECM Suite Core Shielding Medium Armor Plating Shield Generator Shield Generator Datajack Katana [Rating: 17] Favorites ----------- Power Ion Engine Engine Ion Engine Propulsion Light Treads Treads Light Treads Utility Targeting Computer Device ECM Suite Storage Large Storage Unit Processor Targeting Computer Protection Utility Shielding Weapon Light Cannon Energy Gun Small Laser Ballistic Gun Improved Assault Rifle Ballistic Cannon Light Cannon Slashing Weapon Katana Special Melee Weapon Datajack Build | -11 -10 -9 -9 ------- Run | Yrd Mat Mat Min Slots Evolved 2 | . . 2 . Power . | . . . . Propulsion 1 | . . 1 . Utility 1 | . . 1 . Weapon . | . . . . Parts Attached 50 | 7 12 26 5 Power 6 | 2 1 2 1 Engine 6 | 2 1 2 1 Core . | . . . . Reactor . | . . . . Propulsion 13 | 2 . 10 1 Treads 13 | 2 . 10 1 Leg . | . . . . Wheel . | . . . . Hover . | . . . . Flight . | . . . . Utility 10 | 1 4 4 1 Device 1 | . . 1 . Storage 3 | 1 2 . . Processor 4 | . 1 3 . Hackware . | . . . . Protection 2 | . 1 . 1 Artifact . | . . . . Weapon 21 | 2 7 10 2 Energy Gun 4 | . . 3 1 Energy Cannon . | . . . . Ballistic Gun 6 | 2 1 3 . Ballistic Cannon 6 | . 4 2 . Launcher . | . . . . Special Weapon . | . . . . Impact Weapon . | . . . . Slashing Weapon 4 | . 2 1 1 Piercing Weapon . | . . . . Special Melee Weapon 1 | . . 1 . Unidentified Prototypes 1 | . . 1 . Parts Lost 14 | . 2 8 4 Power 3 | . 1 1 1 Propulsion 4 | . . 2 2 Utility 1 | . . 1 . Weapon 6 | . 1 4 1 Highest Loss Streak 4 | . 2 4 3 To Critical Strikes 1 | . . . 1 Average Slot Usage (%) 97 | . 98 97 97 Engine 11 | . 13 9 11 Treads 30 | . 28 32 32 Storage 12 | . 13 11 10 Processor 17 | . 11 21 22 Ballistic Gun 7 | . 1 11 10 Ballistic Cannon 13 | . 24 7 . Slashing Weapon 1 | . 1 . 5 Naked Turns . | . . . . Heaviest Build 35 | 12 31 35 35 Greatest Support 63 | 40 40 63 60 Greatest Overweight (x) 1 | . . 1 . Average Overweight (x) . | . . . . Largest Inventory Capacity 15 | 8 15 15 15 Average Capacity 14 | 7 13 15 14 Most Carried 15 | 5 11 15 11 Average Carried 9 | 2 8 10 9 Final Capacity 15 | 8 15 15 5 Final Carried 10 | 2 10 10 5 Class Distribution -------------------- 64% | Mutant 35% | Scavenger-Mutant Dominant Class ---------------- Mutant | -10/Materials Scavenger-Mutant | -9/Materials Scavenger-Mutant | -9/Mines Resources | -11 -10 -9 -9 ----------- Run | Yrd Mat Mat Min Matter Collected 1329 | 157 482 596 94 Remotely . | . . . . Salvage Created 1513 | . 689 706 118 Parts 122 | . 51 60 11 Haulers Intercepted 1 | . 1 . . Recyclers Shooed . | . . . . Parts Field Recycled . | . . . . Retrieved Matter . | . . . . Parts Self-Destructed . | . . . . Prevented . | . . . . Kills | -11 -10 -9 -9 ------- Run | Yrd Mat Mat Min Combat Hostiles Destroyed 36 | . 17 17 2 Melee 1 | . . . 1 Guns 13 | . . 12 1 Cannons 21 | . 16 5 . AOE 1 | . 1 . . Classes Destroyed 11 | . 7 3 1 Worker 1 | . . . 1 Builder 2 | . . 1 1 Tunneler 1 | . 1 . . Hauler 1 | . 1 . . Recycler 3 | . 2 1 . Operator 3 | . 2 1 . Watcher 4 | . 3 1 . Swarmer 10 | . 6 4 . Grunt 18 | . 11 6 1 Duelist 2 | . . 1 1 Sentry 6 | . . 6 . Best Kill Streak 7 | . 7 4 2 Combat Bots Only 5 | . 5 4 2 Max Kills in Single Turn 2 | . 2 2 1 Gunslinging . | . . . . Exploded 1 | . 1 . . Melee 1 | . . . 1 Uniques/NPCs Destroyed . | . . . . Combat | -11 -10 -9 -9 -------- Run | Yrd Mat Mat Min Hostile Shots Fired 262 | . 38 136 88 Missed 82 | . 12 40 30 Damage Taken 2808 | . 661 1558 589 Core 478 | . 75 318 85 Absorbed by Shields . | . . . . Core Remaining (%) 85 | 100 70 . . Volleys Fired 117 | . 38 68 11 Largest 2 | . 2 2 2 Hottest 80 | . 70 80 46 Shots Fired 211 | . 77 119 15 Gun 114 | . . 99 15 Cannon 97 | . 77 20 . Launcher . | . . . . Special . | . . . . Kinetic 204 | . 77 112 15 Thermal . | . . . . Explosive . | . . . . Electromagnetic 7 | . . 7 . Robot Hit Streak 13 | . 4 13 7 Robot Miss Streak 5 | . 5 5 1 Penetration Max . | . . . . Secondary Targets . | . . . . Shots Hit Robots 142 | . 39 87 16 Core Hits 66 | . 27 33 6 Critical Kills . | . . . . Critical Parts Destroyed 1 | . . 1 . Critical Strikes 3 | . 1 1 1 Destroy 1 | . . 1 . Blast 1 | . 1 . . Sever 1 | . . . 1 Melee Attacks 9 | . 3 1 5 Impact . | . . . . Slashing 8 | . 3 . 5 Piercing . | . . . . Sneak Attacks 2 | . . . 2 Combat Hostiles . | . . . . Follow-up Attacks . | . . . . Damage Inflicted 2561 | . 864 1336 361 Guns 1285 | . . 1102 183 Cannons 942 | . 728 214 . Explosions 128 | . 128 . . Melee 178 | . . . 178 Ramming 28 | . 8 20 . Kinetic 2145 | . 728 1234 183 Thermal . | . . . . Explosive 128 | . 128 . . Electromagnetic 82 | . . 82 . Impact . | . . . . Slashing 178 | . . . 178 Piercing . | . . . . Highest Corruption 11 | . 11 2 2 Average Corruption 3 | . 6 2 2 Corruption Purged . | . . . . Corruption Blocked . | . . . . Effects 26 | . 11 10 5 Message Errors 9 | . 2 5 2 Matter Fused 5 | . 1 2 2 Heat Flow Errors 2 | . 2 . . Energy Discharges 1 | . . 1 . Data Loss (minor) 5 | . 3 1 1 Data Loss (major) 1 | . . 1 . Misfires 1 | . 1 . . Alerts 2 | . 2 . . Overload Shots . | . . . . Overflow Damage 3 | . 3 . . Projectiles 3 | . 3 . . Explosions . | . . . . Melee . | . . . . Knockbacks 5 | . 4 1 . Impact . | . . . . Kinetic 5 | . 4 1 . Secondary . | . . . . Self-Inflicted Damage 49 | . 49 . . Shots 1 | . 1 . . Rammed 4 | . 1 3 . Targets Rammed 5 | . 1 4 . Kicked . | . . . . Crushed 1 | . . 1 . Highest Temperature 255 | . 255 36 . Average Temperature 27 | . 35 8 . Received Heat Transfer 537 | . 42 429 66 Effects 2 | . 2 . . Interference 2 | . 2 . . Siege Activations . | . . . . Robots Corrupted . | . . . . Combat Hostiles . | . . . . Parts Fried 1 | . . 1 . Impact Corruptions . | . . . . Robots Melted . | . . . . Combat Hostiles . | . . . . Parts Melted . | . . . . Heat Transferred . | . . . . Parts Sabotaged . | . . . . Parts Stolen . | . . . . Parts Stripped . | . . . . Power Chain Reactions . | . . . . Alert | -11 -10 -9 -9 ------- Run | Yrd Mat Mat Min Peak Influence 299 | . 299 151 104 Initial 39 | . . 7 39 Average 81 | . 130 48 52 Maximum Alert Level 1 | . 1 . . Low Security (%) 92 | 100 80 100 100 Level 1 7 | . 19 . . Level 2 . | . . . . Level 3 . | . . . . Level 4 . | . . . . Level 5 . | . . . . High Security . | . . . . Max Security . | . . . . Squads Dispatched 8 | . 5 3 . Investigation 6 | . 3 3 . Extermination . | . . . . Reinforcement 2 | . 2 . . Assault . | . . . . Garrison . | . . . . Intercept . | . . . . Searches Triggered . | . . . . Construction Impeded . | . . . . Haulers Reinforced . | . . . . Active Scanning Responses . | . . . . Cargo Convoy Interrupts . | . . . . Stealth | -11 -10 -9 -9 --------- Run | Yrd Mat Mat Min Distress Signals 1 | . . 1 . Communications Jammed . | . . . . Distress Signals . | . . . . Times Spotted 52 | . 24 22 6 Peak Tracking Total 4 | . 3 4 3 Tactical Retreats 3 | . . 1 2 Traps | -11 -10 -9 -9 ------- Run | Yrd Mat Mat Min Traps Triggered 4 | . 2 2 . Indirectly . | . . . . Trap Hack Attempts . | . . . . Triggered . | . . . . Disarmed . | . . . . Reprogrammed . | . . . . Reused . | . . . . Traps Extracted . | . . . . Installed . | . . . . Triggered . | . . . . Machines | -11 -10 -9 -9 ---------- Run | Yrd Mat Mat Min Machines Disabled 7 | . 5 2 . Max in Single Turn 4 | . 4 1 . Machines Repaired . | . . . . Machines Dismantled . | . . . . Machines Sabotaged . | . . . . Overloaded Fab Kills . | . . . . Hacking | -11 -10 -9 -9 --------- Run | Yrd Mat Mat Min Machines Accessed 13 | . 5 8 . Terminals 10 | . 4 6 . Fabricators . | . . . . Repair Stations . | . . . . Recycling Units 2 | . 1 1 . Scanalyzers 1 | . . 1 . Garrison Access . | . . . . Total Hacks 42 | . 18 24 . Successful 18 | . 5 13 . Failed 24 | . 13 11 . Catastrophic 7 | . 4 3 . Database Lockouts . | . . . . Manual 6 | . 1 5 . Terminals 35 | . 15 20 . Fabricators . | . . . . Repair Stations . | . . . . Recycling Units 4 | . 3 1 . Scanalyzers 3 | . . 3 . Garrison Access . | . . . . Terminal Hacks 14 | . 4 10 . Record 4 | . 2 2 . Prototype ID Bank 1 | . . 1 . Emergency Access Points 1 | . . 1 . Unreport Threat 4 | . 1 3 . Dispatch Records 1 | . . 1 . Hauler Manifests 1 | . . 1 . Registered Components 1 | . . 1 . Zone Layout 1 | . 1 . . Fabricator Hacks . | . . . . Repair Station Hacks . | . . . . Recycling Unit Hacks 2 | . 1 1 . Report Inventory 2 | . 1 1 . Scanalyzer 2 | . . 2 . Insert Component 1 | . . 1 . Analyze 1 | . . 1 . Garrison Access Hacks . | . . . . Unauthorized Hacks . | . . . . Terminals . | . . . . Fabricators . | . . . . Repair Stations . | . . . . Recycling Units . | . . . . Scanalyzers . | . . . . Garrison Access . | . . . . Data Cores Recovered . | . . . . Used . | . . . . Hacking Detections 12 | . 5 7 . Full Trace Events 9 | . 4 5 . Feedback Events 1 | . 1 . . Corruption 1 | . 1 . . Feedback Blocked . | . . . . Robot Schematics Acquired . | . . . . Robots Built . | . . . . Authchips . | . . . . Time . | . . . . Total Robot Build Rating . | . . . . Part Schematics Acquired 1 | . . 1 . Parts Built . | . . . . Authchips . | . . . . Time . | . . . . Total Part Build Rating . | . . . . Parts Repaired . | . . . . Time . | . . . . Parts Recycled . | . . . . Recycled Matter . | . . . . Retrieved Matter . | . . . . Retrieved Components . | . . . . Parts Scanalyzed 1 | . . 1 . Part Schematics Acquired 1 | . . 1 . Parts Damaged . | . . . . Bothacking | -11 -10 -9 -9 ------------ Run | Yrd Mat Mat Min Used RIF Installer . | . . . . Robots Hacked 1 | . . 1 . Non-combat . | . . . . Combat 1 | . . 1 . Robot Hacks Applied 1 | . . 1 . parse_system 1 | . . 1 . Relay Couplers Released . | . . . . Fabnet Peak Effective % . | . . . . Robots Rewired . | . . . . Allies Hacked . | . . . . Hacks Repelled . | . . . . Allies | -11 -10 -9 -9 -------- Run | Yrd Mat Mat Min Total Allies . | . . . . Largest Group . | . . . . Highest-Rated Group . | . . . . Highest-Rated Ally . | . . . . Total Orders . | . . . . Ally Attacks . | . . . . Total Damage . | . . . . Kills . | . . . . Allies Corrupted . | . . . . Allies Melted . | . . . . Intel | -11 -10 -9 -9 ------- Run | Yrd Mat Mat Min Robot Analysis Total . | . . . . Derelict Logs Recovered 1 | . . . 1 Drone Launches . | . . . . Drone Recoveries . | . . . . Exploration | -11 -10 -9 -9 ------------- Run | Yrd Mat Mat Min Turns Passed 3544 | 75 1427 1591 451 Spaces Moved 1851 | 47 782 769 253 Core 12 | 12 . . . Treads 1839 | 35 782 769 253 Legs . | . . . . Wheels . | . . . . Hover . | . . . . Flight . | . . . . Fastest Speed 50 | 50 160 160 160 Average Speed 159 | 131 160 160 160 Slowest Speed 240 | 160 160 240 160 Overloaded Moves . | . . . . Propulsion Burnouts . | . . . . Robots Hopped . | . . . . Cave-ins Triggered 1 | . 1 . . Exploration Rate (%) 46 | 4 82 58 42 Regions Visited 3 Branch Regions 1 Pre-discovered Areas . | . . . . Known Exits Taken 1 | . . 1 . Unknown Exits Taken 2 | 1 1 . . Scrap Searched 1 | . . . 1 Spaces Dug 2 | . 2 . . Terrain Destroyed 23 | . 23 . . Melee 2 | . 2 . . Projectile . | . . . . AOE 21 | . 21 . . Terrain Rammed . | . . . . Walls Destroyed . | . . . . Machines Disabled . | . . . . Actions | -11 -10 -9 -9 --------- Run | Yrd Mat Mat Min Total 2220 | 59 875 1008 278 Wait 108 | . 15 93 . Move 1848 | 46 781 768 253 Hop . | . . . . Pick Up 54 | 5 18 29 2 Fast Attach 4 | 3 1 . . Attach 26 | 3 5 15 3 Detach 1 | . 1 . . Swap 20 | 1 6 11 2 Drop 28 | 1 6 19 2 Fire 117 | . 38 68 11 Melee 9 | . 3 1 5 Ram . | . . . . Kick . | . . . . Crush 5 | . 1 4 . Escape Stasis . | . . . . Rewire . | . . . . Trap . | . . . . Miscellaneous . | . . . . Route ------- -11/Scrapyard -10/Materials (discovered 3 exits: *Mat x2 / [*Min]) -9/Materials (discovered 2 exits: *Mat / *Min) -9/Mines (discovered 1 exit: Mat) History --------- Turn | Location | Event 49 | -11/Scrapyard | Discovered new exit (range 12) 76 | -11/Scrapyard | Entered Materials 259 | -10/Materials | Discovered new exit (range 11) 308 | -10/Materials | Build established: Mutant 715 | -10/Materials | Discovered new exit (range 15) 921 | -10/Materials | Discovered new exit (range 11) 1243 | -10/Materials | Crushed by falling debris 1243 | -10/Materials | System corruption reached 10% 1503 | -10/Materials | Entered another Materials area 1503 | -9/Materials | Evolved 2 slots: Propulsion x1, Utility x1 2014 | -9/Materials | Discovered new exit (range 13) 2217 | -9/Materials | Lost 4 parts (1p1n2w) 2271 | -9/Materials | Lost 3 parts (1n1u1w) 2500 | -9/Materials | Discovered new exit (range 8) 2510 | -9/Materials | Identified exit to Materials 2576 | -9/Materials | Build established: Scavenger-Mutant 2663 | -9/Materials | Core integrity fell below 50% 3091 | -9/Materials | Identified exit to Mines 3094 | -9/Materials | Entered Mines 3306 | -9/Mines | Core integrity fell below 20% 3545 | -9/Mines | Destroyed by S-10 Pest with Light Assault Rifle Last Messages --------------- 03447_ R-06 Scavenger collects Sml. Matter Pod. 03448_ Acquired 19 matter. 03450_ K-01 Serf collects debris. 03451_ R-06 Scavenger collects Wheel. 03454_ K-01 Serf collects debris. 03454_ R-06 Scavenger collects Wheel. 03469_ Sneak attack on U-05 Engineer. 03469_ U-05 Engineer destroyed. 03469_ K-01 Serf collects debris. 03471_ Acquired 16 matter. 03471_ R-06 Scavenger collects Lgt. Ion Engine. 03472_ K-01 Serf collects debris. 03473_ K-01 Serf destroyed. 03498_ Critical hit (Destroy). 03498_ Deuterium Engine destroyed. 03510_ R I, | 7CHXI4P%VLOVH% MK2 03510_ K-01 Serf suffers critical hit (Destroy). 03510_ K-01 Serf destroyed. 03512_ S-10 Pest destroyed. 03521_ Lgt. Treads destroyed. Map ----- +----------------------------------------------------+ | ## """ ##?????######## #??????????????? | | """ ## ####### #??????????????? | | #### #??????????????? | | #### ####??????????????? | | ## #?????????????????? | | ##????????????????? | | ## #????????????????? | | #### #????????????????? | | ####??# #????????????????? | | ##?????## ### #????????????????? | | #???????##### %*###?####### #????????????????? | | #???????????## [%##?????????# ### #????????????? | | ?????????????# ==#??????????# #????????????? | | ?????????????# #??????????# #####????????????? | | ?????????????## ##??????????# #????????????????? | | ??????????????# ##???????????# #????????????????? | | ??????????????# ###########??# #????????????????? | | ??????????????# !! #??# =####?????????????? | | ??????????????###########s#??#!%=% #?????????????? | | ????????????????????????# #??##!= #?????????????? | | ????????????????????????#=#???#### #?????????????? | | ????????????????????????#/#??????# #?????????????? | | ????????????????????????#!#??????# ?????????????? | | ????????????????????????# #??????# ????????????? | | ????????????????????????# #??????## #???????????? | | ?????????????